bitfinex/quotes_BTCUSD_20260117
["timestamp","ask_amount","ask_price","bid_price","bid_amount"]
[1768636086690,0.01956496,95055.0,95051.0,0.01052066]
[1768636086905,0.00904474,95055.0,95051.0,0.01052066]
[1768636087118,0.00904474,95055.0,95052.0,0.01052055]
[1768636087828,0.00904474,95055.0,95051.0,0.01052066]
[1768636088248,0.00904474,95055.0,95052.0,0.01052055]
[1768636088469,0.01052033,95054.0,95050.0,4.733e-05]
[1768636088901,0.00904474,95055.0,95050.0,0.0105681]
[1768636089760,0.01052033,95054.0,95050.0,4.733e-05]
[1768636091286,0.01052033,95054.0,95050.0,0.0105681]
[1768636091518,0.01052033,95054.0,95050.0,4.733e-05]
[1768636091845,0.01052033,95054.0,95050.0,0.0105681]
[1768636092726,0.01956496,95055.0,95051.0,0.01052066]
[1768636092950,0.01052033,95054.0,95050.0,0.0105681]
[1768636093832,0.01956496,95055.0,95051.0,0.01052066]
[1768636094029,0.00904474,95055.0,95051.0,0.01052066]
[1768636095215,0.01956496,95055.0,95050.0,0.0105681]
[1768636095410,0.01956496,95055.0,95051.0,0.01052066]
[1768636095596,0.00904474,95055.0,95051.0,0.01052066]
[1768636095749,0.00904474,95055.0,95052.0,0.01052055]
[1768636096157,0.01956496,95055.0,95050.0,0.0105681]
[1768636097505,0.01956496,95055.0,95051.0,0.01052066]
[1768636098290,0.01052044,95053.0,95050.0,4.733e-05]
[1768636099966,0.06312282,95053.0,95050.0,4.733e-05]
[1768636100175,0.01052044,95053.0,95050.0,4.733e-05]
[1768636103327,0.0631228,95053.0,95050.0,4.733e-05]
[1768636106316,0.0526029,95052.0,95050.0,4.733e-05]
[1768636108048,0.01052044,95053.0,95050.0,4.733e-05]
[1768636109741,0.06312309,95053.0,95050.0,4.733e-05]
[1768636110407,0.05260282,95052.0,95050.0,4.733e-05]
[1768636111057,0.01052066,95051.0,95047.0,0.126936]
[1768636111275,0.01052066,95051.0,95047.0,0.12681869]
[1768636113390,0.01052066,95051.0,95047.0,0.1373398]
[1768636113765,0.01052077,95050.0,95048.0,0.12748]
[1768636114177,0.01052055,95052.0,95048.0,0.12748]
[1768636114598,0.01052055,95052.0,95048.0,0.13800099]
[1768636114977,0.01052066,95051.0,95048.0,0.12748]
[1768636115758,0.06312414,95051.0,95048.0,0.12748]
[1768636116995,0.01052055,95052.0,95048.0,0.12748]
[1768636117848,0.01052066,95051.0,95048.0,0.12748]
[1768636118757,0.01052066,95051.0,95044.0,0.0001599]
[1768636118758,0.05260666,95045.0,95044.0,0.0001599]
[1768636118975,0.05260666,95045.0,95044.0,0.00020721]
[1768636119192,0.01052111,95047.0,95044.0,0.00020721]
[1768636119408,0.05260614,95046.0,95044.0,0.00020721]
[1768636119648,0.01052111,95047.0,95044.0,0.00016188]
[1768636119871,0.01052099,95048.0,95044.0,0.00016188]
[1768636120293,0.01052111,95047.0,95044.0,0.00016188]
[1768636122525,0.01052088,95049.0,95044.0,0.01068332]
[1768636122749,0.01052088,95049.0,95044.0,0.00016188]
[1768636122961,0.01052099,95048.0,95044.0,0.01068332]
[1768636123373,0.00992319,95048.0,95044.0,0.01068332]
[1768636123584,0.00992319,95048.0,95044.0,0.00593179]
[1768636123990,0.00992319,95048.0,95043.0,0.01052155]
[1768636124197,0.0099705,95048.0,95043.0,0.01052155]
[1768636124800,0.0099705,95048.0,95044.0,0.01052144]
[1768636124801,4.731e-05,95048.0,95044.0,0.01052144]
[1768636125147,0.0105683,95048.0,95044.0,0.01052144]
[1768636127133,4.731e-05,95048.0,95045.0,0.01052133]
[1768636127899,4.731e-05,95048.0,95044.0,0.01052144]
[1768636128311,0.0105683,95048.0,95044.0,0.00965768]
[1768636130754,0.0105683,95048.0,95043.0,0.01052155]
[1768636130937,0.0105683,95048.0,95044.0,0.01052144]
[1768636131679,0.0105683,95048.0,95043.0,0.01052155]
[1768636131902,0.0105683,95048.0,95044.0,0.01052144]
[1768636132282,4.731e-05,95048.0,95045.0,0.01052133]
[1768636133069,4.731e-05,95048.0,95044.0,0.01052144]
[1768636133321,4.731e-05,95048.0,95045.0,0.01052133]
[1768636134281,4.731e-05,95048.0,95045.0,0.06312792]
[1768636135997,4.731e-05,95048.0,95045.0,0.06293084]
[1768636136393,4.731e-05,95048.0,95045.0,0.01032425]
[1768636137713,4.731e-05,95048.0,95044.0,0.01052144]
[1768636138117,4.731e-05,95048.0,95045.0,0.01052133]
[1768636139053,4.731e-05,95048.0,95046.0,0.05260568]
[1768636139256,4.731e-05,95048.0,95047.0,0.05260555]
[1768636139923,4.731e-05,95048.0,95045.0,0.06312798]
[1768636139924,4.731e-05,95048.0,95046.0,0.05260582]
[1768636140554,4.731e-05,95048.0,95045.0,0.01052133]
[1768636141248,4.731e-05,95048.0,95043.0,0.01052155]
[1768636141450,4.731e-05,95048.0,95045.0,0.01052133]
[1768636142485,0.01052022,95055.0,95050.0,0.01052077]
[1768636142486,0.12748,95053.0,95050.0,0.01052077]
[1768636142694,0.12748,95053.0,95050.0,0.00986718]
[1768636142902,0.12748,95053.0,95050.0,0.00967015]
[1768636143327,0.12748,95053.0,95050.0,0.06227392]
[1768636144370,0.12748,95053.0,95051.0,0.05260323]
[1768636144583,0.12748,95053.0,95050.0,0.06227392]
[1768636144784,0.01051967,95060.0,95053.0,0.01052044]
[1768636145001,0.01052,95057.0,95050.0,0.00967015]
[1768636145196,0.01052,95057.0,95052.0,0.01052055]
[1768636145987,0.01052011,95056.0,95052.0,0.01052055]
[1768636146200,4.787e-05,95055.0,95052.0,0.01012657]
[1768636146589,4.787e-05,95055.0,95022.0,0.04965489]
[1768636146590,0.05753126,95038.0,95022.0,0.04965489]
[1768636146952,0.04700916,95036.0,95031.0,0.05261424]
[1768636147170,0.01052266,95033.0,95030.0,0.0002]
[1768636148002,0.01052254,95034.0,95030.0,0.0002]
[1768636148202,0.01052266,95033.0,95030.0,0.0002]
[1768636148457,0.05261429,95032.0,95030.0,0.0002]
[1768636148641,0.05261429,95032.0,95030.0,3.05e-06]
[1768636148840,4.787e-05,95031.0,95030.0,3.05e-06]
[1768636149069,0.05266228,95031.0,95030.0,3.05e-06]
[1768636149829,0.05261551,95029.0,95028.0,0.06916422]
[1768636150030,0.05261551,95029.0,95028.0,4.732e-05]
[1768636152226,0.01052376,95028.0,95025.0,0.0001599]
[1768636152446,0.01052376,95028.0,95025.0,0.00063341]
[1768636152856,5.5e-07,95028.0,95025.0,0.00063341]
[1768636153061,0.01052376,95028.0,95025.0,0.00063341]
[1768636153284,5.5e-07,95028.0,95025.0,0.01115695]
[1768636153503,5.5e-07,95028.0,95025.0,0.06377463]
[1768636153948,5.5e-07,95028.0,95025.0,0.01115695]
[1768636154180,5.5e-07,95028.0,95025.0,0.0637746]
[1768636155454,5.5e-07,95028.0,95026.0,0.05261706]
[1768636156344,5.5e-07,95028.0,95025.0,0.01115695]
[1768636156556,5.5e-07,95028.0,95025.0,0.06377451]
[1768636156947,5.5e-07,95028.0,95025.0,0.01115695]
[1768636157158,5.5e-07,95028.0,95025.0,0.06377454]
[1768636158148,5.5e-07,95028.0,95025.0,0.01115695]
[1768636158572,5.5e-07,95028.0,95026.0,0.05261717]
[1768636158874,5.5e-07,95028.0,95015.0,0.01052466]
[1768636158875,0.01052398,95021.0,95015.0,0.01052466]
[1768636159032,0.00047378,95021.0,95018.0,0.01052432]
[1768636159231,0.00047378,95021.0,95015.0,1e-08]
[1768636159460,0.01052421,95019.0,95015.0,1e-08]
[1768636159664,0.01052376,95020.0,95015.0,0.01052466]
[1768636159892,0.0105241,95020.0,95015.0,1e-08]
[1768636160128,0.01052421,95019.0,95015.0,0.0496149]
[1768636160363,0.01052421,95019.0,95014.0,0.03925547]
[1768636160566,0.01052443,95017.0,95014.0,0.03925547]
[1768636165138,0.01052443,95017.0,95014.0,0.00768146]
[1768636166872,0.02104941,95018.0,95014.0,0.00768146]
[1768636167091,0.0105241,95020.0,95014.0,0.01820622]
[1768636167308,0.00047378,95021.0,95017.0,0.05849909]
[1768636167718,0.00047378,95021.0,95017.0,0.01052443]
[1768636167922,0.01052354,95025.0,95018.0,0.01052432]
[1768636168165,0.01052376,95023.0,95020.0,0.02689466]
[1768636168374,0.01052376,95023.0,95019.0,0.01052421]
[1768636169183,0.01052376,95023.0,95018.0,0.01066632]
[1768636169996,0.01052365,95024.0,95019.0,0.01052421]
[1768636170407,0.01052354,95025.0,95020.0,0.0105241]
[1768636170608,0.01052365,95024.0,95019.0,0.01052421]
[1768636170753,0.01052365,95024.0,95020.0,0.0105241]
[1768636171223,0.01052277,95032.0,95021.0,0.01052398]
[1768636171420,0.01052299,95030.0,95024.0,0.01052365]
[1768636171635,0.06313778,95031.0,95025.0,0.01052354]
[1768636171841,0.0105231,95029.0,95024.0,0.01052365]
[1768636172213,0.01052321,95028.0,95024.0,0.01052365]
[1768636172413,0.01052321,95028.0,95023.0,0.01052376]
[1768636173015,0.01052299,95030.0,95025.0,0.01052354]
[1768636173401,0.0105231,95029.0,95024.0,0.01052365]
[1768636173604,0.0105231,95029.0,95025.0,0.01052354]
[1768636175440,0.01052299,95030.0,95026.0,0.01052343]
[1768636175672,0.0105231,95029.0,95025.0,0.01052354]
[1768636175876,0.01052299,95030.0,95025.0,0.01052354]
[1768636176312,0.05261379,95033.0,95025.0,0.01052354]
[1768636176531,0.01052243,95035.0,95030.0,0.01052299]
[1768636176733,0.01052221,95037.0,95031.0,0.01052288]
[1768636176734,0.01052232,95036.0,95031.0,0.01052288]
[1768636176913,0.01052254,95034.0,95029.0,0.0105231]
[1768636177118,0.01052266,95033.0,95029.0,0.05673439]
[1768636177325,0.01052266,95033.0,95028.0,0.01052321]
[1768636177522,0.01052266,95033.0,95027.0,0.05261654]
[1768636177523,0.01052266,95033.0,95027.0,0.01052332]
[1768636177757,0.01052277,95032.0,95028.0,0.0567345]
[1768636177984,0.01052254,95034.0,95029.0,0.0105231]
[1768636178235,0.01052254,95034.0,95029.0,0.05673439]
[1768636178716,0.01052254,95034.0,95029.0,0.0105231]
[1768636179491,0.01052266,95033.0,95028.0,0.01052321]
[1768636179862,0.01052266,95033.0,95029.0,0.0105231]
[1768636180023,0.01052266,95033.0,95028.0,0.01052321]
[1768636181594,0.01052266,95033.0,95029.0,0.04621129]
[1768636181892,0.01052277,95032.0,95029.0,0.04621129]
[1768636182109,0.01052277,95032.0,95028.0,0.01052321]
[1768636183185,0.01052266,95033.0,95028.0,0.01052321]
[1768636183792,0.01052266,95033.0,95029.0,0.0105231]
[1768636184172,0.01052266,95033.0,95027.0,0.02104586]
[1768636184372,0.01052266,95033.0,95029.0,0.0105231]
[1768636184798,0.01052254,95034.0,95029.0,0.0105231]
[1768636186645,0.01052266,95033.0,95029.0,0.0105231]
[1768636188066,0.01052266,95033.0,95029.0,0.05673439]
[1768636188465,0.01052266,95033.0,95029.0,0.0105231]
[1768636189288,0.01052277,95032.0,95028.0,0.01052321]
[1768636190170,0.01052288,95031.0,95027.0,0.01052254]
[1768636190492,0.01052299,95030.0,95027.0,0.01052254]
[1768636194011,0.05261602,95029.0,95027.0,0.01052254]
[1768636194221,0.01052376,95023.0,95019.0,0.2655854]
[1768636194418,0.01052376,95023.0,95020.0,0.12752]
[1768636194862,0.01052365,95024.0,95020.0,0.12752]
[1768636196300,0.01052376,95023.0,95020.0,0.12752]
[1768636200690,0.06314277,95023.0,95020.0,0.12752]
[1768636200908,0.01052376,95023.0,95020.0,0.12752]
[1768636202116,0.06314132,95025.0,95020.0,0.12752]
[1768636202117,0.01052354,95025.0,95020.0,0.1380441]
[1768636202353,0.01052376,95023.0,95020.0,0.11699646]
[1768636202738,0.06314276,95023.0,95020.0,0.11699646]
[1768636202955,0.01052398,95021.0,95018.0,0.03171106]
[1768636203572,0.01052398,95021.0,95018.0,0.000142]
[1768636203983,0.01052398,95021.0,95018.0,0.01066598]
[1768636204396,0.05262105,95019.0,95018.0,0.000142]
[1768636204805,0.05262057,95020.0,95018.0,0.000142]
[1768636205225,0.01052443,95017.0,95014.0,0.00768146]
[1768636205483,0.01052454,95016.0,95011.0,0.01052509]
[1768636205675,0.01066393,95017.0,95011.0,0.01052509]
[1768636205884,0.01066393,95017.0,95012.0,0.01052498]
[1768636206327,0.01052454,95016.0,95011.0,0.01052509]
[1768636206982,0.01052454,95016.0,95012.0,0.01052498]
[1768636208238,0.01066393,95017.0,95012.0,0.01052498]
[1768636209151,0.01066393,95017.0,95013.0,0.01052487]
[1768636209360,0.0001395,95017.0,95013.0,0.01052487]
[1768636209574,0.01052465,95015.0,95011.0,0.04852838]
[1768636209983,0.06314802,95015.0,95011.0,0.04852838]
[1768636210394,0.01052476,95014.0,95011.0,0.04852838]
[1768636211858,0.01052465,95015.0,95011.0,0.04852838]
[1768636212538,0.01052476,95014.0,95011.0,0.04852838]
[1768636213849,0.01066393,95017.0,95011.0,0.04852838]
[1768636214022,0.01052454,95016.0,95012.0,0.01052498]
[1768636214451,0.01052454,95016.0,95011.0,0.05905347]
[1768636214662,0.01052454,95016.0,95012.0,0.01052498]
[1768636214860,0.01052454,95016.0,95011.0,0.01052509]
[1768636215064,0.01052465,95015.0,95010.0,0.0105252]
[1768636215812,0.01052476,95014.0,95009.0,0.01052531]
[1768636216019,0.01052487,95013.0,95008.0,0.17604838]
[1768636217338,0.01052498,95012.0,95008.0,0.17604838]
[1768636218533,0.01052509,95011.0,95008.0,0.17604838]
[1768636219211,0.0105252,95010.0,95008.0,0.12752]
[1768636220501,0.01052498,95012.0,95008.0,0.17604838]
[1768636220725,0.01052498,95012.0,95008.0,0.1865738]
[1768636220933,0.01052487,95013.0,95008.0,0.1865738]
[1768636221154,0.01052498,95012.0,95008.0,0.1865738]
[1768636221374,0.01052487,95013.0,95008.0,0.1865738]
[1768636221375,0.01052487,95013.0,95009.0,0.01052531]
[1768636221820,0.01052487,95013.0,95008.0,0.1865738]
[1768636222478,0.01052498,95012.0,95008.0,0.17604838]
[1768636222888,0.01052498,95012.0,95008.0,0.1865738]
[1768636223330,0.01052476,95014.0,95009.0,0.01052531]
[1768636223532,0.01052509,95011.0,95008.0,0.17604838]
[1768636223734,0.01052465,95015.0,95010.0,0.0105252]
[1768636224587,0.01052465,95015.0,95011.0,0.01052509]
[1768636225085,0.0001395,95017.0,95011.0,0.01052509]
[1768636225494,0.01066393,95017.0,95013.0,0.01052487]
[1768636225697,0.0001395,95017.0,95013.0,0.01052487]
[1768636225902,0.0001395,95017.0,95014.0,0.01052476]
[1768636228237,0.01066393,95017.0,95012.0,0.01052498]
[1768636229073,0.01066393,95017.0,95013.0,0.0454235]
[1768636229474,0.01066393,95017.0,95012.0,0.01052498]
[1768636229685,0.01052465,95015.0,95011.0,0.01052509]
[1768636230063,0.01052465,95015.0,95010.0,0.0559487]
[1768636232263,0.01052476,95014.0,95010.0,0.0559487]
[1768636233392,0.01052476,95014.0,95010.0,0.0105252]
[1768636234482,0.01052487,95013.0,95008.0,0.13804542]
[1768636234686,0.01052487,95013.0,95009.0,0.01052531]
[1768636235129,0.01052487,95013.0,95009.0,0.05713384]
[1768636235818,0.01052476,95014.0,95010.0,0.05713373]
[1768636236066,0.01052476,95014.0,95010.0,0.04660853]
[1768636237650,0.01052487,95013.0,95010.0,0.04660853]
[1768636239444,0.01052476,95014.0,95010.0,0.04660853]
[1768636239648,0.01052465,95015.0,95010.0,0.05713373]
[1768636239864,0.01052476,95014.0,95010.0,0.05713373]
[1768636240075,0.01052476,95014.0,95010.0,0.04660853]
[1768636240582,0.01052476,95014.0,95010.0,0.05713373]
[1768636240972,0.01052476,95014.0,95010.0,0.04660853]
[1768636241300,0.01052476,95014.0,95010.0,0.05713373]
[1768636242737,0.06315079,95011.0,95008.0,0.12752]
[1768636242940,0.01052509,95011.0,95008.0,0.12752]
[1768636244044,0.01052498,95012.0,95008.0,0.12752]
[1768636244255,0.01052509,95011.0,95008.0,0.12752]
[1768636245936,0.01052498,95012.0,95008.0,0.12752]
[1768636246363,0.01052498,95012.0,95008.0,0.13804542]
[1768636246769,0.01052487,95013.0,95008.0,0.13804542]
[1768636246974,0.01052498,95012.0,95008.0,0.12752]
[1768636247174,0.01052498,95012.0,95008.0,0.13804542]
[1768636247344,0.01052509,95011.0,95008.0,0.12752]
[1768636247565,0.01052498,95012.0,95008.0,0.12752]
[1768636247774,0.01052498,95012.0,95008.0,0.13804542]
[1768636247970,0.01052498,95012.0,95008.0,0.12752]
[1768636248398,0.01052509,95011.0,95008.0,0.12752]
[1768636248808,0.0526277,95007.0,95006.0,0.0001599]
[1768636249105,0.05262732,95008.0,95006.0,0.0001599]
[1768636249505,0.063152,95009.0,95006.0,0.0001599]
[1768636249954,0.01052531,95009.0,95006.0,0.0001599]
[1768636250304,0.0105252,95010.0,95006.0,0.0001599]
[1768636250485,0.01052531,95009.0,95006.0,0.0001599]
[1768636252842,0.0105252,95010.0,95006.0,0.01068555]
[1768636252956,0.01052531,95009.0,95006.0,0.0001599]
[1768636254913,0.06315195,95009.0,95006.0,0.0001599]
[1768636255322,0.01052531,95009.0,95006.0,0.0001599]
[1768636255540,0.01052531,95009.0,95004.0,0.01052587]
[1768636255541,0.01052686,94995.0,94982.0,0.01052831]
[1768636255751,3.0,95001.0,94977.0,0.05013218]
[1768636255752,3.0,95001.0,94993.0,0.01052709]
[1768636255981,2.34857657,95001.0,94999.0,0.04997228]
[1768636256179,2.34857657,95001.0,94998.0,0.01052653]
[1768636256180,0.28298304,95001.0,95000.0,0.05263157]
[1768636256586,0.28298304,95001.0,94998.0,0.01052653]
[1768636257236,0.02546936,95001.0,94998.0,0.01052653]
[1768636257863,0.02546936,95001.0,94997.0,0.01052664]
[1768636258078,0.02546936,95001.0,94998.0,0.01052653]
[1768636258547,0.02546936,95001.0,94997.0,0.01052664]
[1768636258729,0.02546936,95001.0,94998.0,0.01052653]
[1768636260320,0.0592484,95010.0,94998.0,0.01052653]
[1768636260555,0.01052476,95014.0,95001.0,0.0105262]
[1768636260733,0.01052454,95016.0,95007.0,0.25516569]
[1768636260936,0.01066393,95017.0,95007.0,0.26569123]
[1768636261137,0.01052454,95016.0,95007.0,0.26569123]
[1768636261312,0.05924774,95016.0,95007.0,0.25516569]
[1768636261518,0.0487232,95016.0,95008.0,0.01052542]
[1768636261719,0.05924774,95016.0,95007.0,0.25516569]
[1768636261929,0.05924774,95016.0,95007.0,0.26569123]
[1768636262520,0.0487232,95016.0,95007.0,0.25516569]
[1768636262640,0.01066393,95017.0,95007.0,0.26569123]
[1768636263061,0.0001395,95017.0,95008.0,0.01052542]
[1768636263477,0.0001395,95017.0,95009.0,0.01052531]
[1768636265214,0.01066393,95017.0,95008.0,0.01052542]
[1768636265796,0.0001395,95017.0,95009.0,0.01052531]
[1768636267278,0.0001395,95017.0,95010.0,0.0105252]
[1768636267475,0.0001395,95017.0,95009.0,0.01052531]
[1768636267771,0.0001395,95017.0,95010.0,0.0105252]
[1768636268184,0.0001395,95017.0,95011.0,0.01052509]
[1768636268411,0.0001395,95017.0,95010.0,0.0105252]
[1768636268986,0.0001395,95017.0,95007.0,0.26569123]
[1768636269216,0.0001395,95017.0,95009.0,0.01052531]
[1768636269650,0.0001395,95017.0,95010.0,0.0105252]
[1768636269890,0.0001395,95017.0,95009.0,0.01052531]
[1768636270325,0.0001395,95017.0,95010.0,0.0105252]
[1768636270532,0.0001395,95017.0,95009.0,0.01052531]
[1768636270741,0.0001395,95017.0,95010.0,0.0105252]
[1768636270947,0.0001395,95017.0,95011.0,0.01052509]
[1768636271159,0.0001395,95017.0,95009.0,0.01052531]
[1768636271363,0.0001395,95017.0,95010.0,0.0105252]
[1768636271782,0.0001395,95017.0,95012.0,0.01052498]
[1768636271990,0.0488627,95017.0,95011.0,0.01052509]
[1768636272628,0.12752,95023.0,95011.0,0.01052509]
[1768636272629,0.0487232,95032.0,95023.0,0.01052376]
[1768636272835,0.00025462,95029.0,95024.0,0.01052365]
[1768636273042,0.04897782,95029.0,95024.0,0.01052365]
[1768636273267,0.04897782,95029.0,95023.0,0.01052376]
[1768636273756,0.04897782,95029.0,95021.0,0.01052398]
[1768636273972,0.05950092,95029.0,95020.0,0.0105241]
[1768636275080,0.04897782,95029.0,95020.0,0.0105241]
[1768636275551,0.01052321,95028.0,95020.0,0.0105241]
[1768636275769,0.01052321,95028.0,95019.0,0.2656899]
[1768636277102,0.01052321,95028.0,95020.0,0.0105241]
[1768636277593,0.01052321,95028.0,95019.0,0.2656899]
[1768636277594,0.01052332,95027.0,95019.0,0.25516569]
[1768636278044,0.01052343,95026.0,95019.0,0.25516569]
[1768636278258,0.01052343,95026.0,95018.0,0.01052432]
[1768636278480,0.01052343,95026.0,95017.0,0.01052443]
[1768636278705,0.01052332,95027.0,95018.0,0.01052432]
[1768636278924,0.01052332,95027.0,95019.0,0.01052421]
[1768636279761,0.01052343,95026.0,95018.0,0.01052432]
[1768636280199,0.01052332,95027.0,95019.0,0.01052421]
[1768636280651,0.01052321,95028.0,95019.0,0.01052421]
[1768636280867,0.01052343,95026.0,95018.0,0.01052432]
[1768636281570,0.01052332,95027.0,95019.0,0.01052421]
[1768636282040,0.01052332,95027.0,95018.0,0.01052432]
[1768636282262,0.01052343,95026.0,95016.0,0.26569023]
[1768636282462,0.01052343,95026.0,95018.0,0.01052432]
[1768636283527,0.01052332,95027.0,95018.0,0.01052432]
[1768636283730,0.01052343,95026.0,95018.0,0.01052432]
[1768636284580,0.00025462,95029.0,95022.0,0.01052387]
[1768636284737,0.00025462,95029.0,95023.0,0.01052376]
[1768636285535,0.00025462,95029.0,95022.0,0.01052387]
[1768636285690,0.01077772,95029.0,95020.0,0.0105241]
[1768636285894,0.01077772,95029.0,95021.0,0.01052398]
[1768636286213,0.01077772,95029.0,95020.0,0.0105241]
[1768636287233,0.01077772,95029.0,95021.0,0.01052398]
[1768636287807,0.01052321,95028.0,95020.0,0.0105241]
[1768636288018,0.06963864,95029.0,95020.0,0.0105241]
[1768636288354,0.06963864,95029.0,95021.0,0.01052398]
[1768636290383,0.01052321,95028.0,95019.0,0.3932099]
[1768636290713,0.01052321,95028.0,95020.0,0.0105241]
[1768636292556,0.01052332,95027.0,95019.0,0.3932099]
[1768636292764,0.01052321,95028.0,95020.0,0.0105241]
[1768636293792,0.01052332,95027.0,95019.0,0.3932099]
[1768636294261,0.06963864,95029.0,95019.0,0.3932099]
[1768636294458,0.06963864,95029.0,95021.0,0.01052398]
[1768636295262,0.01052321,95028.0,95021.0,0.01052398]
[1768636295868,0.06963864,95029.0,95021.0,0.01052398]
[1768636296052,0.01052332,95027.0,95020.0,0.0105241]
[1768636296253,0.01052321,95028.0,95020.0,0.0105241]
[1768636296459,0.00025462,95029.0,95022.0,0.01052387]
[1768636296652,0.00025462,95029.0,95026.0,0.01052343]
[1768636297038,0.00025462,95029.0,95026.0,0.06314039]
[1768636298512,0.00025462,95029.0,95026.0,0.01052343]
[1768636301572,0.00025462,95029.0,95025.0,0.01052354]
[1768636301774,0.00025462,95029.0,95026.0,0.01052343]
[1768636305121,0.05775168,95029.0,95026.0,0.01052343]
[1768636307023,0.00025462,95029.0,95026.0,0.01052343]
[1768636307244,0.0226748,95045.0,95034.0,0.01052254]
[1768636307441,0.06801684,95059.0,95038.0,0.11763038]
[1768636307673,0.05777663,95058.0,95053.0,0.01052044]
[1768636307899,0.05777663,95058.0,95052.0,0.01052055]
[1768636308311,0.06829652,95058.0,95051.0,0.01052066]
[1768636308506,0.05777663,95058.0,95051.0,0.01052066]
[1768636308726,0.05777663,95058.0,95052.0,0.01052055]
[1768636308933,0.05777663,95058.0,95053.0,0.01052044]
[1768636309075,0.00027957,95058.0,95054.0,0.01052033]
[1768636309291,0.00027957,95058.0,95054.0,0.01044182]
[1768636309504,0.00027957,95058.0,95054.0,0.0103633]
[1768636309716,0.00027957,95058.0,95053.0,0.01052044]
[1768636310295,0.00027957,95058.0,95055.0,0.01052022]
[1768636311886,0.00027957,95058.0,95055.0,0.06312098]
[1768636313778,0.00027957,95058.0,95055.0,0.01052022]
[1768636314196,0.00027957,95058.0,95055.0,0.06312133]
[1768636315173,0.00027957,95058.0,95056.0,0.05260054]
[1768636315754,0.00027957,95058.0,95055.0,0.06312124]
[1768636316449,0.00027957,95058.0,95055.0,0.01052022]
[1768636317352,0.00027957,95058.0,95055.0,0.06312121]
[1768636317950,0.00027957,95058.0,95056.0,0.05260049]
[1768636318348,0.00027957,95058.0,95055.0,0.01052022]
[1768636318556,0.00027957,95058.0,95056.0,0.05260011]
[1768636318750,0.00027957,95058.0,95057.0,0.05260001]
[1768636319586,0.00027957,95058.0,95057.0,0.05255468]
[1768636320229,0.00027957,95058.0,95057.0,0.05250935]
[1768636321930,0.00027957,95058.0,95057.0,0.06301068]
[1768636322707,1e-08,95058.0,95057.0,0.05250935]
[1768636322923,1e-08,95058.0,95057.0,0.06301157]
[1768636324801,1e-08,95058.0,95057.0,0.05250935]
[1768636325586,1e-08,95061.0,95060.0,0.05259835]
[1768636328507,1e-08,95061.0,95060.0,0.06415333]
[1768636328708,0.05802957,95076.0,95069.0,0.06311152]
[1768636328709,0.03320508,95076.0,95069.0,0.06311152]
[1768636328934,0.04372298,95076.0,95070.0,0.13799856]
[1768636329246,0.01051801,95075.0,95070.0,0.12748]
[1768636329396,0.06854758,95075.0,95070.0,0.12748]
[1768636329838,0.05802957,95075.0,95070.0,0.13799856]
[1768636330058,0.01051779,95077.0,95070.0,0.12748]
[1768636331294,0.0105179,95076.0,95070.0,0.13799856]
[1768636331530,0.01051779,95077.0,95071.0,0.01051845]
[1768636331811,0.0105179,95076.0,95070.0,0.13799856]
[1768636332011,0.01051779,95077.0,95071.0,0.01051845]
[1768636332673,0.0105179,95076.0,95070.0,0.13799856]
[1768636333131,0.01051779,95077.0,95071.0,0.01051845]
[1768636333845,0.0105179,95076.0,95070.0,0.13799856]
[1768636334049,0.0105179,95076.0,95071.0,0.01156038]
[1768636334218,0.01051779,95077.0,95071.0,0.02207883]
[1768636334442,0.01051779,95077.0,95071.0,0.0220335]
[1768636336707,0.0105179,95076.0,95071.0,0.01151505]
[1768636336917,0.01051812,95074.0,95070.0,0.12748]
[1768636337131,0.01051823,95073.0,95070.0,0.12748]
[1768636337351,0.01051823,95073.0,95070.0,0.12743468]
[1768636342087,0.06188146,95075.0,95070.0,0.12738936]
[1768636342216,0.01051812,95074.0,95071.0,0.01150365]
[1768636342424,0.06188146,95075.0,95071.0,0.01150365]
[1768636342623,0.01051812,95074.0,95071.0,0.01150365]
[1768636343202,0.06188157,95074.0,95071.0,0.01150365]
[1768636343630,0.05136345,95074.0,95071.0,0.01150365]
[1768636346936,0.06188157,95074.0,95071.0,0.01150365]
[1768636347139,0.01051911,95065.0,95062.0,0.12744]
[1768636347349,0.01061376,95065.0,95062.0,0.12744]
[1768636347585,0.01051922,95064.0,95062.0,0.12744]
[1768636348197,0.01061376,95065.0,95062.0,0.12744]
[1768636349741,0.06320942,95065.0,95062.0,0.12744]
[1768636351042,0.01061376,95065.0,95062.0,0.12744]
[1768636351452,9.465e-05,95065.0,95062.0,0.12744]
[1768636352106,0.01061376,95065.0,95062.0,0.12744]
[1768636352435,9.465e-05,95065.0,95062.0,0.12744]
[1768636355255,9.465e-05,95065.0,95062.0,0.13795945]
[1768636355416,9.465e-05,95065.0,95062.0,0.12744]
[1768636355879,0.01051768,95078.0,95071.0,0.06311033]
[1768636356055,0.01051756,95079.0,95072.0,0.01051834]
[1768636356256,0.05620011,95079.0,95074.0,0.01051812]
[1768636356664,0.05620011,95079.0,95075.0,0.01051801]
[1768636356862,0.06671767,95079.0,95074.0,0.01051812]
[1768636357057,0.05620011,95079.0,95075.0,0.01051801]
[1768636357245,0.05620011,95079.0,95076.0,0.0105179]
[1768636357439,0.18381561,95082.0,95077.0,0.01051779]
[1768636358066,0.18381561,95082.0,95078.0,0.01051768]
[1768636358290,0.18381561,95082.0,95079.0,0.01051756]
[1768636358291,0.0001755,95082.0,95079.0,0.01051756]
[1768636358789,0.0001755,95082.0,95079.0,0.01047224]
[1768636358927,0.0001755,95082.0,95076.0,0.06310715]
[1768636359134,0.01069273,95082.0,95078.0,0.01051768]
[1768636359371,0.01069273,95082.0,95077.0,0.01051779]
[1768636359576,0.01069273,95082.0,95078.0,0.01051768]
[1768636360363,0.0001755,95082.0,95078.0,0.01051768]
[1768636361453,0.01069273,95082.0,95077.0,0.01051779]
[1768636364834,0.01069273,95082.0,95076.0,0.0105179]
[1768636366269,0.01051734,95081.0,95076.0,0.0105179]
[1768636366470,0.01069273,95082.0,95077.0,0.01051779]
[1768636366680,0.01051734,95081.0,95076.0,0.0105179]
[1768636367099,0.01051734,95081.0,95077.0,0.01051779]
[1768636367304,0.01051734,95081.0,95076.0,0.0105179]
[1768636367941,0.01051745,95080.0,95075.0,0.01051801]
[1768636370116,0.01051734,95081.0,95076.0,0.0105179]
[1768636378804,0.01051745,95080.0,95075.0,0.01051801]
[1768636379800,0.01051756,95079.0,95075.0,0.01051801]
[1768636381016,0.01051745,95080.0,95075.0,0.01051801]
[1768636383293,0.01051745,95080.0,95076.0,0.0105179]
[1768636383920,0.01051734,95081.0,95076.0,0.0105179]
[1768636385459,0.01051745,95080.0,95076.0,0.0105179]
[1768636386082,0.01071954,95081.0,95076.0,0.0105179]
[1768636387404,0.01071954,95081.0,95075.0,0.01051801]
[1768636387405,0.01051745,95080.0,95075.0,0.01051801]
[1768636388579,0.01051745,95080.0,95076.0,0.0105179]
[1768636394114,0.05111004,95081.0,95077.0,0.01051779]
[1768636394740,0.06162738,95081.0,95077.0,0.01051779]
[1768636395188,0.05111004,95081.0,95077.0,0.01051779]
[1768636396004,0.06162738,95081.0,95076.0,0.0105179]
[1768636396397,0.05111004,95081.0,95077.0,0.01051779]
[1768636397986,0.01051745,95080.0,95076.0,0.0105179]